bitfinex-derivatives/quotes_BTCF0:USTF0_20230402
["timestamp","ask_amount","ask_price","bid_price","bid_amount"]
[1680444039933,0.42774578,28290.0,28286.0,0.3007]
[1680444040533,0.42774578,28290.0,28285.0,0.05]
[1680444040845,0.42774578,28290.0,28286.0,0.3007]
[1680444041049,0.42874578,28290.0,28286.0,0.3007]
[1680444041231,0.001,28290.0,28289.0,0.3007]
[1680444042633,0.001,28290.0,28289.0,0.3067]
[1680444043136,0.001,28290.0,28289.0,0.3117]
[1680444044834,0.001,28290.0,28289.0,0.011]
[1680444045340,0.00669395,28290.0,28289.0,0.011]
[1680444045645,0.002,28290.0,28289.0,0.011]
[1680444046041,0.00669417,28290.0,28289.0,0.011]
[1680444046238,0.12704578,28294.0,28287.0,0.05]
[1680444046442,0.002,28290.0,28289.0,0.011]
[1680444047834,0.002,28290.0,28289.0,0.061]
[1680444048043,0.002,28290.0,28289.0,0.011]
[1680444048642,0.002,28290.0,28289.0,0.061]
[1680444049035,0.17704578,28295.0,28289.0,0.061]
[1680444049348,0.002,28290.0,28289.0,0.061]
[1680444049837,0.002,28290.0,28289.0,0.011]
[1680444050534,0.05,28294.0,28288.0,0.3007]
[1680444050741,0.19104578,28295.0,28289.0,0.001]
[1680444051051,0.002,28290.0,28289.0,0.011]
[1680444051341,0.002,28290.0,28289.0,0.061]
[1680444051538,0.05,28294.0,28289.0,0.051]
[1680444051735,0.19104578,28295.0,28289.0,0.051]
[1680444051986,0.19104578,28295.0,28288.0,0.3007]
[1680444052134,0.002,28290.0,28289.0,0.061]
[1680444053338,0.19104578,28295.0,28289.0,0.051]
[1680444053538,0.14104578,28295.0,28289.0,0.051]
[1680444053759,0.002,28290.0,28289.0,0.061]
[1680444054341,0.00678915,28290.0,28289.0,0.061]
[1680444054546,0.00478915,28290.0,28289.0,0.051]
[1680444055043,0.00478915,28290.0,28289.0,0.061]
[1680444055044,0.002,28290.0,28289.0,0.061]
[1680444055346,0.002,28290.0,28289.0,0.06092771]
[1680444056848,0.05,28295.0,28290.0,0.05]
[1680444057057,0.12704578,28296.0,28292.0,0.3007]
[1680444057249,0.0048018,28294.0,28292.0,0.3007]
[1680444057549,0.42774578,28297.0,28292.0,0.3007]
[1680444057939,0.02,28296.0,28295.0,0.3007]
[1680444058344,0.02,28296.0,28293.0,0.05]
[1680444059247,0.025,28297.0,28295.0,0.3007]
[1680444059446,0.025,28297.0,28296.0,0.05]
[1680444059749,0.12704578,28299.0,28296.0,0.05]
[1680444060244,0.007,28297.0,28295.0,0.3017]
[1680444060647,0.14704578,28299.0,28296.0,0.001]
[1680444060841,0.14704578,28299.0,28296.0,0.051]
[1680444061047,0.00202344,28298.0,28296.0,0.001]
[1680444061558,0.007,28297.0,28296.0,0.05]
[1680444062662,0.013,28298.0,28296.0,0.051]
[1680444062860,0.013,28298.0,28296.0,0.05]
[1680444063050,0.12704578,28302.0,28297.0,0.00168589]
[1680444063248,0.12704578,28302.0,28301.0,0.3007]
[1680444063949,0.025,28302.0,28301.0,0.3007]
[1680444065455,0.12704578,28303.0,28301.0,0.3007]
[1680444065654,0.025,28302.0,28301.0,0.3017]
[1680444066054,0.013,28302.0,28301.0,0.3017]
[1680444072153,0.013,28302.0,28301.0,0.3517]
[1680444072677,0.013,28302.0,28301.0,0.3017]
[1680444074962,0.3007,28305.0,28301.0,0.3007]
[1680444075170,0.007,28302.0,28301.0,0.3017]
[1680444075717,0.3007,28305.0,28301.0,0.3507]
[1680444075860,0.3007,28305.0,28302.0,0.05527311]
[1680444076572,0.02,28305.0,28302.0,0.05527311]
[1680444076787,0.02,28305.0,28304.0,0.3007]
[1680444078258,0.02,28305.0,28304.0,0.3017]
[1680444086527,0.12704578,28310.0,28305.0,0.05]
[1680444086668,0.12604578,28312.0,28309.0,0.3007]
[1680444087680,0.12604578,28312.0,28309.0,0.3027]
[1680444087970,0.13104578,28312.0,28309.0,0.3027]
[1680444088567,0.005,28312.0,28309.0,0.3027]
[1680444090084,0.005,28312.0,28309.0,0.002]
[1680444091066,0.005,28312.0,28310.0,0.01278414]
[1680444091977,0.005,28312.0,28311.0,0.3007]
[1680444092482,0.21935404,28315.0,28311.0,0.3007]
[1680444092666,0.005,28312.0,28311.0,0.3007]
[1680444092865,0.05,28314.0,28311.0,0.3007]
[1680444093070,0.005,28312.0,28311.0,0.3027]
[1680444095668,0.005,28312.0,28311.0,0.002]
[1680444099881,0.005,28312.0,28310.0,0.01278414]
[1680444101288,0.009,28312.0,28310.0,0.01478414]
[1680444103714,0.009,28312.0,28311.0,0.3007]
[1680444104174,0.12657928,28314.0,28311.0,0.3507]
[1680444104384,0.17657928,28315.0,28311.0,0.3007]
[1680444104678,0.12657928,28315.0,28311.0,0.3027]
[1680444105075,0.12657928,28315.0,28311.0,0.3007]
[1680444105275,0.12657928,28315.0,28311.0,0.3027]
[1680444106092,0.12657928,28315.0,28312.0,0.01319653]
[1680444107580,0.12657928,28315.0,28312.0,0.01519653]
[1680444112593,0.12657928,28315.0,28312.0,0.06519653]
[1680444112781,0.12657928,28315.0,28314.0,0.3007]
[1680444114099,0.12657928,28315.0,28314.0,0.3027]
[1680444115094,0.12657928,28316.0,28314.0,0.3027]
[1680444115797,0.12657928,28317.0,28314.0,0.3027]
[1680444116186,0.12657928,28316.0,28314.0,0.3027]
[1680444116592,0.12657928,28317.0,28314.0,0.3027]
[1680444118187,0.12657928,28316.0,28314.0,0.3027]
[1680444118390,0.12657928,28317.0,28314.0,0.3027]
[1680444118788,0.12657928,28316.0,28314.0,0.3027]
[1680444119192,0.12657928,28317.0,28314.0,0.3027]
[1680444120408,0.05,28316.0,28314.0,0.3027]
[1680444120592,0.17657928,28316.0,28314.0,0.3027]
[1680444120794,0.17657928,28316.0,28314.0,0.002]
[1680444121042,0.17657928,28316.0,28315.0,0.01777007]
[1680444121395,0.12657928,28316.0,28315.0,0.01777007]
[1680444122502,0.12657928,28316.0,28315.0,0.01977007]
[1680444124305,0.21935404,28317.0,28315.0,0.01977007]
[1680444124504,0.16935404,28317.0,28315.0,0.01977007]
[1680444125397,0.47746382,28316.0,28315.0,0.01977007]
[1680444125599,0.3507,28316.0,28311.0,0.3007]
[1680444125902,0.12676779,28315.0,28311.0,0.3007]
[1680444126102,0.12676779,28315.0,28312.0,0.01509306]
[1680444127808,0.12676779,28314.0,28312.0,0.01509306]
[1680444128218,0.3007,28313.0,28312.0,0.01509306]
[1680444128402,0.17676779,28314.0,28312.0,0.01709306]
[1680444128603,0.12676779,28314.0,28312.0,0.01709306]
[1680444129006,0.12776779,28314.0,28312.0,0.01709306]
[1680444129197,0.3007,28313.0,28312.0,0.01709306]
[1680444129399,0.42746779,28313.0,28312.0,0.01709306]
[1680444130108,0.42746779,28313.0,28307.0,0.05]
[1680444130517,0.05,28312.0,28309.0,0.01073825]
[1680444130698,0.43046779,28313.0,28306.0,0.3007]
[1680444130699,0.3537,28313.0,28307.0,0.05]
[1680444130910,0.3007,28313.0,28307.0,0.05]
[1680444131107,0.3037,28313.0,28308.0,0.002]
[1680444131509,0.003,28312.0,28309.0,0.002]
[1680444132005,0.3037,28313.0,28308.0,0.002]
[1680444133224,0.003,28312.0,28309.0,0.00729355]
[1680444133606,0.3037,28313.0,28309.0,0.00529355]
[1680444134211,0.003,28312.0,28309.0,0.00729355]
[1680444134711,0.3037,28313.0,28309.0,0.00729355]
[1680444135211,0.003,28312.0,28309.0,0.00729355]
[1680444136229,0.3037,28313.0,28309.0,0.00729355]
[1680444136812,0.003,28312.0,28309.0,0.00729355]
[1680444137014,0.053,28312.0,28309.0,0.00729355]
[1680444137239,0.3037,28313.0,28309.0,0.00729355]
[1680444137815,0.003,28312.0,28309.0,0.00729355]
[1680444139332,0.3037,28313.0,28309.0,0.00729355]
[1680444139510,0.3037,28313.0,28310.0,0.05]
[1680444139511,0.003,28313.0,28310.0,0.05]
[1680444139707,0.3007,28316.0,28311.0,0.00439818]
[1680444139918,0.003,28312.0,28311.0,0.00439818]
[1680444140110,0.05,28315.0,28311.0,0.00439818]
[1680444140399,0.003,28313.0,28311.0,0.00439818]
[1680444140517,0.12976779,28313.0,28311.0,0.00439818]
[1680444140717,0.003,28312.0,28311.0,0.00639818]
[1680444141216,0.12976779,28313.0,28311.0,0.00639818]
[1680444142411,0.003,28312.0,28311.0,0.00639818]
[1680444142919,0.12976779,28313.0,28311.0,0.00639818]
[1680444143319,0.003,28312.0,28311.0,0.00639818]
[1680444143926,0.12976779,28313.0,28311.0,0.00639818]
[1680444144533,0.12676779,28312.0,28311.0,0.00639818]
[1680444145115,0.12976779,28312.0,28311.0,0.00639818]
[1680444145414,0.003,28312.0,28311.0,0.00639818]
[1680444148624,0.053,28312.0,28311.0,0.00639818]
[1680444149419,0.003,28312.0,28311.0,0.00639818]
[1680444149614,0.053,28312.0,28311.0,0.00639818]
[1680444150817,0.003,28312.0,28311.0,0.00639818]
[1680444151021,0.053,28312.0,28311.0,0.00639818]
[1680444151221,0.003,28312.0,28311.0,0.00639818]
[1680444157934,0.053,28312.0,28311.0,0.00639818]
[1680444158325,0.003,28312.0,28311.0,0.00639818]
[1680444162060,0.13004464,28312.0,28311.0,0.00639818]
[1680444175966,0.003,28312.0,28311.0,0.00639818]
[1680444178231,0.003,28312.0,28311.0,0.00621758]
[1680444181763,0.00639692,28312.0,28311.0,0.002]
[1680444183755,0.13344156,28312.0,28311.0,0.002]
[1680444183959,0.13347618,28312.0,28311.0,0.002]
[1680444184344,0.00639692,28312.0,28311.0,0.002]
[1680444185785,0.01469313,28312.0,28311.0,0.002]
[1680444186267,0.1417753,28312.0,28311.0,0.002]
[1680444186651,0.01469313,28312.0,28311.0,0.002]
[1680444187451,0.14177418,28312.0,28311.0,0.002]
[1680444187667,0.01469313,28312.0,28311.0,0.002]
[1680444187959,0.05,28311.0,28306.0,0.3507]
[1680444188150,0.3007,28310.0,28303.0,0.3007]
[1680444188349,0.3007,28310.0,28306.0,0.3007]
[1680444188558,0.42778668,28310.0,28306.0,0.3007]
[1680444189662,0.43278668,28310.0,28306.0,0.3007]
[1680444189861,0.42778668,28310.0,28306.0,0.3007]
[1680444190073,0.43278668,28310.0,28306.0,0.3027]
[1680444190959,0.3057,28310.0,28306.0,0.3027]
[1680444193655,0.43278668,28310.0,28306.0,0.3027]
[1680444195660,0.005,28310.0,28307.0,0.05]
[1680444195968,0.005,28310.0,28309.0,0.3007]
[1680444196861,0.12708668,28313.0,28310.0,0.05]
[1680444197251,0.12708668,28314.0,28312.0,0.3007]
[1680444198257,0.12708668,28314.0,28312.0,0.3027]
[1680444211172,0.01168725,28313.0,28312.0,0.3027]
[1680444215370,0.01168725,28313.0,28312.0,0.002]
[1680444215571,0.01168725,28313.0,28312.0,0.3027]
[1680444219183,0.01168725,28313.0,28312.0,0.002]
[1680444219368,0.01168725,28313.0,28312.0,0.3027]
[1680444220268,0.12708668,28315.0,28312.0,0.3027]
[1680444221671,0.12708668,28315.0,28312.0,0.3007]
[1680444221976,0.12708668,28315.0,28312.0,0.3027]
[1680444222175,0.12708668,28315.0,28312.0,0.3007]
[1680444222389,0.12708668,28315.0,28312.0,0.3027]
[1680444225078,0.12708668,28316.0,28312.0,0.3027]
[1680444226280,0.00881931,28315.0,28312.0,0.3027]
[1680444227673,0.00881931,28315.0,28313.0,0.05]
[1680444228477,0.00881931,28315.0,28313.0,0.052]
[1680444229583,0.00881931,28315.0,28313.0,0.002]
[1680444231292,0.00881931,28315.0,28313.0,0.052]
[1680444231480,0.00881931,28315.0,28313.0,0.002]
[1680444233387,0.00881931,28315.0,28313.0,0.052]
[1680444233587,0.00881931,28315.0,28313.0,0.002]
[1680444234078,0.00881931,28315.0,28313.0,0.052]
[1680444235281,0.00881931,28315.0,28313.0,0.002]
[1680444237882,0.00881931,28315.0,28313.0,0.052]
[1680444238097,0.00881931,28315.0,28313.0,0.002]
[1680444238287,0.00881931,28315.0,28313.0,0.052]
[1680444239586,0.00881931,28315.0,28314.0,0.3007]
[1680444240591,0.00881931,28315.0,28314.0,0.3027]
[1680444242389,0.13590599,28315.0,28314.0,0.3027]
[1680444244692,0.13590599,28315.0,28314.0,0.30257601]
[1680444249312,0.30951931,28315.0,28305.0,0.8496]
[1680444249602,0.12709798,28311.0,28305.0,0.7996]
[1680444250002,0.12709798,28311.0,28304.0,0.3007]
[1680444250524,0.13109798,28311.0,28305.0,0.051]
[1680444251202,0.13109798,28311.0,28305.0,0.05]
[1680444251598,0.13109798,28311.0,28305.0,0.051]
[1680444255907,0.00912114,28310.0,28307.0,0.3007]
[1680444256096,0.00912114,28310.0,28308.0,0.05]
[1680444257104,0.01112114,28310.0,28308.0,0.051]
[1680444258301,0.12709798,28314.0,28308.0,0.051]
[1680444258608,0.12709798,28315.0,28314.0,0.05]
[1680444258905,0.12709798,28315.0,28313.0,0.3007]
[1680444259900,0.12709798,28315.0,28313.0,0.3027]
[1680444263511,0.12709798,28316.0,28313.0,0.3027]
[1680444264308,0.12709798,28315.0,28313.0,0.3027]
[1680444264500,0.12709798,28316.0,28313.0,0.3027]
[1680444265807,0.00702715,28315.0,28313.0,0.3027]
[1680444267800,0.00702715,28315.0,28313.0,0.3007]
[1680444268013,0.00702715,28315.0,28313.0,0.3027]
[1680444270422,0.00702715,28315.0,28313.0,0.002]
[1680444271010,0.00702715,28315.0,28314.0,0.3007]
[1680444271908,0.00702715,28315.0,28314.0,0.3027]
[1680444273503,0.12709798,28318.0,28314.0,0.3027]
[1680444273708,0.00702898,28315.0,28314.0,0.3027]
[1680444273907,0.47016398,28320.0,28314.0,0.3027]
[1680444273908,0.12709798,28317.0,28314.0,0.3027]
[1680444274726,0.12709798,28317.0,28314.0,0.002]
[1680444274908,0.12709798,28317.0,28312.0,0.05]
[1680444275110,0.12709798,28317.0,28314.0,0.002]
[1680444276309,0.12709798,28317.0,28314.0,0.3027]
[1680444276554,0.12709798,28317.0,28314.0,0.002]
[1680444284727,0.12709798,28317.0,28314.0,0.3027]
[1680444285320,0.12709798,28318.0,28314.0,0.3027]
[1680444285821,0.12709798,28318.0,28315.0,0.05]
[1680444286022,0.00622037,28317.0,28314.0,0.3027]
[1680444286427,0.00622037,28317.0,28314.0,0.3007]
[1680444286727,0.00622037,28317.0,28314.0,0.3027]
[1680444289623,0.00622037,28317.0,28315.0,0.05]
[1680444290925,0.00622037,28317.0,28315.0,0.052]
[1680444292025,0.12709798,28319.0,28315.0,0.052]
[1680444292225,0.05,28322.0,28317.0,0.3007]
[1680444292226,0.12709798,28318.0,28317.0,0.3007]
[1680444292423,0.12709798,28319.0,28317.0,0.3007]
[1680444293424,0.12709798,28318.0,28317.0,0.3007]
[1680444293714,0.12709798,28319.0,28317.0,0.3027]
[1680444295726,0.05,28322.0,28317.0,0.3027]
[1680444295727,0.12709798,28318.0,28317.0,0.3027]
[1680444297126,0.12709798,28318.0,28317.0,0.002]
[1680444297636,0.16946398,28319.0,28317.0,0.002]
[1680444297923,0.12691398,28318.0,28317.0,0.002]
[1680444298527,0.16946398,28319.0,28317.0,0.002]
[1680444298832,0.12694081,28318.0,28317.0,0.002]
[1680444300624,0.21946398,28319.0,28317.0,0.002]
[1680444302731,0.16946398,28318.0,28317.0,0.002]
[1680444303625,0.16938889,28318.0,28317.0,0.002]
[1680444303936,0.16938889,28318.0,28317.0,0.00187334]
[1680444304441,0.16938889,28318.0,28317.0,0.002]
[1680444304730,0.26167476,28319.0,28317.0,0.002]
[1680444304929,0.21167476,28319.0,28317.0,0.002]
[1680444305128,0.05,28318.0,28317.0,0.002]
[1680444305832,0.26167476,28319.0,28317.0,0.002]
[1680444306033,0.00561371,28318.0,28317.0,0.00143863]
[1680444306345,0.00561371,28318.0,28317.0,0.00119194]
[1680444306605,0.05561371,28318.0,28317.0,0.0008529]
[1680444306722,0.05561371,28318.0,28317.0,0.00046449]
[1680444306929,0.05561371,28318.0,28317.0,0.0001351]
[1680444307241,0.26928847,28318.0,28317.0,0.0016489]
[1680444307423,0.05761371,28318.0,28317.0,0.00133668]
[1680444307718,0.00761371,28318.0,28317.0,0.00133668]
[1680444307939,0.21928847,28318.0,28317.0,0.00067174]
[1680444308153,0.00761371,28318.0,28317.0,0.00067174]
[1680444308333,0.00761371,28318.0,28317.0,0.00033276]
[1680444308552,0.00761371,28318.0,28317.0,8.497e-05]
[1680444308790,0.00761371,28318.0,28312.0,0.05]
[1680444309044,0.12706243,28315.0,28312.0,0.05]
[1680444309736,0.12706243,28314.0,28312.0,0.05]
[1680444309936,0.12706243,28315.0,28312.0,0.052]
[1680444310532,0.13106243,28315.0,28312.0,0.052]
[1680444313742,0.00446494,28314.0,28312.0,0.052]
[1680444315851,0.00846494,28314.0,28312.0,0.052]
[1680444318347,0.00846494,28314.0,28312.0,0.002]
[1680444318735,0.13552737,28314.0,28312.0,0.002]
[1680444318952,0.00846494,28314.0,28312.0,0.002]
[1680444320719,0.00846494,28314.0,28312.0,0.3027]
[1680444329437,0.00846494,28314.0,28313.0,0.05]
[1680444330747,0.00446494,28314.0,28313.0,0.052]
[1680444330939,0.00846494,28314.0,28313.0,0.052]
[1680444333460,0.00846494,28314.0,28313.0,0.002]
[1680444334958,0.00829424,28314.0,28313.0,0.002]
[1680444337452,0.00829424,28314.0,28311.0,0.05]
[1680444337758,0.00829424,28314.0,28313.0,0.002]
[1680444339162,0.00829424,28314.0,28311.0,0.002]
[1680444339661,0.00829424,28314.0,28313.0,0.002]
[1680444340168,0.00829424,28314.0,28311.0,0.002]
[1680444340569,0.13135667,28314.0,28310.0,0.05]
[1680444340755,0.13535667,28314.0,28313.0,0.002]
[1680444341876,0.13135667,28314.0,28311.0,0.002]
[1680444342169,0.13535667,28314.0,28311.0,0.002]
[1680444342358,0.13535667,28314.0,28313.0,0.002]
[1680444342751,0.13535667,28314.0,28312.0,0.3007]
[1680444343464,0.13535667,28314.0,28313.0,0.002]
[1680444344969,0.13535667,28314.0,28312.0,0.002]
[1680444345275,0.13135667,28314.0,28309.0,0.3507]
[1680444345543,0.13535667,28314.0,28313.0,0.002]
[1680444345668,0.13543486,28314.0,28313.0,0.002]
[1680444345970,0.13543486,28314.0,28312.0,0.002]
[1680444346465,0.13543486,28314.0,28313.0,0.002]
[1680444347068,0.13543486,28314.0,28312.0,0.002]
[1680444348067,0.13543486,28314.0,28313.0,0.002]
[1680444348470,0.13543486,28314.0,28312.0,0.002]
[1680444348970,0.13543486,28314.0,28313.0,0.002]
[1680444349470,0.13543486,28314.0,28312.0,0.002]
[1680444350871,0.13543486,28314.0,28309.0,0.3507]
[1680444350872,0.13543486,28314.0,28313.0,0.002]
[1680444351382,0.13543486,28314.0,28312.0,0.002]
[1680444351870,0.13543486,28314.0,28313.0,0.002]
[1680444352366,0.13543486,28314.0,28311.0,0.05]
[1680444352669,0.13543486,28314.0,28312.0,0.002]
[1680444353774,0.13543486,28314.0,28313.0,0.002]
[1680444354582,0.13543486,28314.0,28312.0,0.002]
[1680444355072,0.13543486,28314.0,28313.0,0.002]
[1680444355473,0.13143486,28314.0,28311.0,0.05]
[1680444355667,0.13543486,28314.0,28312.0,0.002]
[1680444357075,0.13143486,28314.0,28311.0,0.05]
[1680444357448,0.13543486,28314.0,28313.0,0.002]
[1680444357676,0.13543486,28314.0,28312.0,0.002]
[1680444358174,0.13543486,28314.0,28311.0,0.052]
[1680444359386,0.13543486,28314.0,28312.0,0.002]
[1680444359880,0.13543486,28314.0,28311.0,0.052]
[1680444360291,0.13543486,28314.0,28312.0,0.002]
[1680444360977,0.15343486,28314.0,28311.0,0.051]
[1680444361182,0.15343486,28314.0,28311.0,0.001]
[1680444362278,0.13143486,28314.0,28310.0,0.3007]
[1680444362577,0.15743486,28314.0,28312.0,0.001]
[1680444362821,0.15343486,28314.0,28311.0,0.001]
[1680444363175,0.13143486,28314.0,28310.0,0.3007]
[1680444363481,0.15343486,28314.0,28310.0,0.3017]
[1680444363776,0.15343486,28314.0,28311.0,0.001]
[1680444364282,0.13143486,28314.0,28310.0,0.3007]
[1680444364580,0.15343486,28314.0,28310.0,0.3017]
[1680444365672,0.15343486,28314.0,28311.0,0.001]
[1680444366092,0.15343486,28314.0,28310.0,0.3017]
[1680444366680,0.15343486,28314.0,28311.0,0.001]
[1680444367081,0.13143486,28314.0,28310.0,0.3007]
[1680444367282,0.15343486,28314.0,28310.0,0.3017]
[1680444368377,0.15343486,28314.0,28311.0,0.001]
[1680444368781,0.15343486,28314.0,28310.0,0.3017]
[1680444369287,0.15343486,28314.0,28311.0,0.001]
[1680444369877,0.15343486,28314.0,28310.0,0.3017]
[1680444370379,0.15343486,28314.0,28311.0,0.001]
[1680444371385,0.13143486,28314.0,28310.0,0.3007]
[1680444371584,0.15343486,28314.0,28310.0,0.3017]
[1680444371895,0.15343486,28314.0,28311.0,0.001]
[1680444372392,0.15343486,28314.0,28310.0,0.3017]
[1680444372776,0.15343486,28314.0,28310.0,0.3007]
[1680444372977,0.15343486,28314.0,28311.0,0.001]
[1680444374186,0.13143486,28314.0,28310.0,0.3007]
[1680444374486,0.15343486,28314.0,28310.0,0.3017]
[1680444374688,0.15343486,28314.0,28311.0,0.001]
[1680444375083,0.15343486,28314.0,28311.0,0.05]
[1680444375502,0.15343486,28314.0,28310.0,0.3017]
[1680444375684,0.15343486,28314.0,28311.0,0.001]
[1680444375903,0.15343486,28314.0,28311.0,0.051]
[1680444376189,0.15343486,28314.0,28311.0,0.001]
[1680444379786,0.15343486,28314.0,28311.0,0.0509027]
[1680444383895,0.15343486,28314.0,28311.0,0.0009027]
[1680444384284,0.15343486,28314.0,28311.0,0.0509027]
[1680444384692,0.15343486,28314.0,28311.0,0.0009027]
[1680444385103,0.15343486,28314.0,28311.0,0.0509027]
[1680444385792,0.15343486,28314.0,28311.0,0.0009027]
[1680444386391,0.15343486,28314.0,28311.0,0.0509027]
[1680444387913,0.15343486,28314.0,28311.0,0.0009027]
[1680444398009,0.15343486,28314.0,28311.0,0.0509027]
[1680444398304,0.15343486,28314.0,28311.0,0.0009027]
[1680444399304,0.15343486,28314.0,28311.0,0.0509027]
[1680444399505,0.15343486,28314.0,28311.0,0.0009027]
[1680444399913,0.12714062,28313.0,28311.0,0.0009027]
[1680444400305,0.00446403,28312.0,28311.0,0.0009027]
[1680444401108,0.00446403,28312.0,28310.0,0.3007]
[1680444401420,0.01246403,28312.0,28311.0,0.051]
[1680444414417,0.01246403,28312.0,28311.0,0.001]
[1680444414919,0.01246403,28312.0,28311.0,0.051]
[1680444416321,0.01246403,28312.0,28311.0,0.3517]
[1680444417224,0.01246403,28312.0,28311.0,0.3017]
[1680444424571,0.01246403,28312.0,28304.0,1.1126]
[1680444424572,0.01246403,28312.0,28305.0,0.3507]
[1680444424724,0.3007,28310.0,28305.0,0.3507]
[1680444424918,0.3007,28310.0,28305.0,0.3007]
[1680444425129,0.00446999,28309.0,28305.0,0.3007]
[1680444425532,0.00446999,28309.0,28305.0,0.3507]
[1680444425730,0.12717204,28311.0,28305.0,0.3507]
[1680444425924,0.001,28310.0,28305.0,0.3557]
[1680444426122,0.12717204,28311.0,28305.0,0.3507]
[1680444426324,0.001,28309.0,28305.0,0.3607]
[1680444426822,0.001,28310.0,28305.0,0.3557]
[1680444427329,0.001,28310.0,28306.0,0.05]
[1680444427941,0.12717204,28312.0,28306.0,0.05]
[1680444428138,0.001,28309.0,28306.0,0.05]
[1680444428522,0.001,28310.0,28306.0,0.055]
[1680444428926,0.12717204,28312.0,28306.0,0.06]
[1680444429121,0.001,28309.0,28306.0,0.06]
[1680444429432,0.001,28310.0,28306.0,0.055]
[1680444430832,0.001,28310.0,28306.0,0.05]
[1680444431055,0.001,28309.0,28306.0,0.06]
[1680444431421,0.001,28310.0,28306.0,0.055]
[1680444431829,0.001,28309.0,28306.0,0.06]
[1680444432431,0.001,28310.0,28306.0,0.055]
[1680444433325,0.001,28310.0,28307.0,0.3007]
[1680444434281,0.001,28309.0,28307.0,0.3007]
[1680444434529,0.12717204,28311.0,28307.0,0.3007]
[1680444434729,0.001,28310.0,28307.0,0.3057]
[1680444435143,0.001,28309.0,28307.0,0.3107]
[1680444435632,0.001,28310.0,28307.0,0.3057]
[1680444436048,0.12717204,28311.0,28307.0,0.3007]
[1680444436235,0.001,28309.0,28307.0,0.3107]
[1680444437640,0.001,28310.0,28307.0,0.3057]
[1680444437937,0.12717204,28311.0,28307.0,0.3007]
[1680444438129,0.009,28309.0,28307.0,0.3017]
[1680444438631,0.015,28310.0,28307.0,0.3017]
[1680444438837,0.00447324,28308.0,28307.0,0.3017]
[1680444439042,0.015,28310.0,28307.0,0.3017]
[1680444439432,0.002,28309.0,28307.0,0.3007]
[1680444440536,0.001,28308.0,28307.0,0.3057]
[1680444441035,0.002,28309.0,28307.0,0.3007]
[1680444441558,0.12717204,28311.0,28307.0,0.3057]
[1680444441559,0.001,28308.0,28307.0,0.3057]
[1680444441943,0.002,28309.0,28307.0,0.3007]
[1680444443438,0.001,28308.0,28307.0,0.3057]
[1680444443830,0.002,28309.0,28307.0,0.3007]
[1680444444438,0.12717204,28311.0,28307.0,0.3057]
[1680444444439,0.001,28308.0,28307.0,0.3057]
[1680444445071,0.002,28309.0,28307.0,0.3007]
[1680444446155,0.001,28308.0,28307.0,0.3057]
[1680444446542,0.002,28309.0,28307.0,0.3007]
[1680444447442,0.001,28308.0,28307.0,0.3057]
[1680444447940,0.002,28309.0,28307.0,0.3007]
[1680444449042,0.12717204,28311.0,28307.0,0.3007]
[1680444449353,0.001,28308.0,28307.0,0.3057]
[1680444449542,0.002,28309.0,28307.0,0.3007]
[1680444450036,0.14217204,28311.0,28307.0,0.3017]
[1680444450542,0.002,28309.0,28307.0,0.3007]
[1680444451941,0.14217204,28311.0,28307.0,0.3017]
[1680444453836,0.00447677,28310.0,28307.0,0.3017]
[1680444454548,0.002,28309.0,28307.0,0.3007]
[1680444455804,0.01247677,28310.0,28307.0,0.3017]
[1680444456045,0.027,28309.0,28307.0,0.3017]
[1680444456541,0.06247677,28310.0,28307.0,0.3017]
[1680444456745,0.49034881,28310.0,28307.0,0.001]
[1680444457149,0.022,28309.0,28307.0,0.001]
[1680444457356,0.14917204,28309.0,28307.0,0.001]
[1680444457761,0.17717204,28308.0,28304.0,0.6137]
[1680444458057,0.3007,28306.0,28304.0,0.313]
[1680444458257,0.3007,28306.0,28300.0,0.05]
[1680444458548,0.05,28305.0,28300.0,0.05]
[1680444458745,0.3507,28306.0,28299.0,0.3007]
[1680444458947,0.05,28305.0,28299.0,0.3007]
[1680444459182,0.05,28305.0,28301.0,0.001]
[1680444459658,0.05,28305.0,28299.0,0.3017]
[1680444459842,0.3777,28306.0,28299.0,0.3017]
[1680444459843,0.50487204,28306.0,28299.0,0.3017]
[1680444460041,0.027,28305.0,28301.0,0.001]
[1680444460247,0.077,28305.0,28301.0,0.001]
[1680444460445,0.05,28305.0,28300.0,0.05]
[1680444460748,0.027,28305.0,28299.0,0.3017]
[1680444460949,0.077,28305.0,28299.0,0.3017]
[1680444461669,0.027,28305.0,28301.0,0.001]
[1680444461852,0.077,28305.0,28301.0,0.001]
[1680444462044,0.05,28305.0,28300.0,0.05]
[1680444462324,0.072,28305.0,28299.0,0.3017]
[1680444462766,0.072,28305.0,28301.0,0.001]
[1680444463152,0.072,28305.0,28299.0,0.3017]
[1680444464347,0.072,28305.0,28301.0,0.001]
[1680444464862,0.077,28305.0,28300.0,0.05]
[1680444465045,0.027,28305.0,28300.0,0.05]
[1680444465245,0.47787204,28306.0,28299.0,0.3007]
[1680444465457,0.027,28305.0,28301.0,0.001]
[1680444465748,0.17717204,28305.0,28299.0,0.3007]
[1680444465953,0.05,28304.0,28300.0,0.001]
[1680444466356,0.05,28304.0,28301.0,0.001]
[1680444467551,0.072,28304.0,28300.0,0.001]
[1680444467746,0.3007,28303.0,28300.0,0.001]
[1680444467948,0.05,28302.0,28301.0,0.001]
[1680444468363,0.3007,28303.0,28300.0,0.001]
[1680444468789,0.01282869,28302.0,28300.0,0.001]